bitfinex/quotes_BTCUSD_20251215
["timestamp","ask_amount","ask_price","bid_price","bid_amount"]
[1765804713190,0.22335637,89543.0,89542.0,0.09486872]
[1765804713838,0.22335469,89544.0,89542.0,0.09486872]
[1765804714283,0.01116756,89545.0,89542.0,0.31822686]
[1765804714487,0.23451895,89545.0,89542.0,0.3313948]
[1765804714709,0.001,89544.0,89542.0,0.3353948]
[1765804714911,0.22435392,89544.0,89542.0,0.10086872]
[1765804715100,0.22335637,89543.0,89542.0,0.09886872]
[1765804715431,0.22335392,89544.0,89542.0,0.09686872]
[1765804715867,0.22335392,89544.0,89542.0,0.09986872]
[1765804716086,0.22335637,89543.0,89542.0,0.09986872]
[1765804716316,0.22335637,89543.0,89542.0,0.09686872]
[1765804716854,0.22335637,89543.0,89542.0,0.002]
[1765804717083,0.22336136,89541.0,89540.0,0.0104]
[1765804717340,0.223359,89542.0,89540.0,0.0104]
[1765804718059,0.01216781,89543.0,89541.0,0.22336086]
[1765804718199,0.01116781,89543.0,89541.0,0.13534872]
[1765804718414,0.22335887,89542.0,89541.0,0.13534872]
[1765804718815,0.22435887,89542.0,89541.0,0.13534872]
[1765804719117,0.23452566,89543.0,89541.0,0.13534872]
[1765804719331,0.001,89543.0,89542.0,0.04048]
[1765804719850,0.22335637,89543.0,89542.0,0.04048]
[1765804720189,0.22335389,89544.0,89542.0,0.04048]
[1765804720394,0.22335637,89543.0,89542.0,0.04048]
[1765804720673,0.22335389,89544.0,89542.0,0.04048]
[1765804720874,0.22335637,89543.0,89542.0,0.04048]
[1765804721053,0.22335389,89544.0,89542.0,0.04048]
[1765804721623,0.22335408,89544.0,89542.0,0.04248]
[1765804721820,0.01116756,89545.0,89542.0,0.05364794]
[1765804722065,0.22335637,89543.0,89542.0,0.04648]
[1765804722581,0.22435487,89544.0,89542.0,0.04648]
[1765804722722,0.22435487,89544.0,89542.0,0.26983859]
[1765804722927,0.22335487,89544.0,89542.0,0.04248]
[1765804723337,0.22335487,89544.0,89542.0,0.2658388]
[1765804723749,0.01116756,89545.0,89542.0,0.04048]
[1765804723990,0.23451895,89545.0,89542.0,0.04048]
[1765804724195,0.23451895,89545.0,89542.0,0.04248]
[1765804724405,0.22335515,89544.0,89542.0,0.04248]
[1765804724826,0.22435637,89543.0,89542.0,0.04648]
[1765804725344,0.22335515,89544.0,89542.0,0.04048]
[1765804725766,0.22335515,89544.0,89542.0,0.04548]
[1765804726071,0.22335515,89544.0,89542.0,0.04248]
[1765804726426,0.001,89543.0,89542.0,0.04648]
[1765804726627,0.001,89543.0,89542.0,0.22935887]
[1765804726838,0.001,89543.0,89542.0,0.24532887]
[1765804727222,0.001,89543.0,89542.0,0.26783887]
[1765804727444,0.001,89543.0,89542.0,0.37906116]
[1765804727882,0.001,89543.0,89542.0,0.38106116]
[1765804728182,0.01116707,89549.0,89547.0,0.11122229]
[1765804728409,0.2233439,89548.0,89547.0,0.11122229]
[1765804728601,0.2233439,89548.0,89547.0,0.15170229]
[1765804729753,0.23450916,89549.0,89547.0,0.15170229]
[1765804730191,0.001,89548.0,89547.0,0.37804868]
[1765804730393,0.001,89548.0,89547.0,0.35353868]
[1765804730855,0.001,89548.0,89547.0,0.37904868]
[1765804731269,0.001,89548.0,89547.0,0.15570229]
[1765804731585,0.001,89548.0,89547.0,0.15470229]
[1765804731789,0.22334194,89549.0,89547.0,0.15270229]
[1765804732430,0.22334194,89549.0,89548.0,0.2233439]
[1765804732431,0.001,89549.0,89548.0,0.2233439]
[1765804732800,0.001,89549.0,89548.0,0.2638239]
[1765804733397,0.001,89549.0,89548.0,0.2233439]
[1765804733586,0.001,89549.0,89547.0,0.33756803]
[1765804733587,0.5140439,89548.0,89547.0,0.003]
[1765804733786,0.6656553,89548.0,89547.0,0.003]
[1765804734350,0.6656553,89548.0,89547.0,0.004]
[1765804734552,0.6101852,89548.0,89547.0,0.004]
[1765804734980,0.22336884,89538.0,89532.0,0.01116919]
[1765804735138,0.22336884,89538.0,89534.0,0.0104]
[1765804735753,0.2345379,89538.0,89534.0,0.0104]
[1765804736165,0.2345379,89538.0,89537.0,0.00362525]
[1765804736363,0.22336884,89538.0,89537.0,0.04410525]
[1765804736685,0.22336884,89538.0,89537.0,0.01959525]
[1765804737028,0.22436884,89538.0,89537.0,0.00862525]
[1765804739332,0.24737884,89538.0,89537.0,0.00862525]
[1765804740148,0.22436884,89538.0,89537.0,0.00862525]
[1765804742916,0.37568887,89538.0,89537.0,0.00862525]
[1765804743122,0.66638887,89538.0,89537.0,0.00862525]
[1765804743778,0.66538887,89538.0,89537.0,0.00362525]
[1765804743980,0.67401412,89538.0,89537.0,0.00362525]
[1765804744797,0.67401412,89538.0,89537.0,0.00062525]
[1765804744996,0.56277409,89538.0,89537.0,0.00062525]
[1765804745223,0.56277409,89538.0,89537.0,0.00262525]
[1765804745428,0.56377409,89538.0,89537.0,0.00562525]
[1765804745634,0.53899409,89538.0,89537.0,0.00562525]
[1765804746094,0.56377409,89538.0,89537.0,0.00562525]
[1765804748185,0.67501412,89538.0,89537.0,0.00562525]
[1765804748991,0.56377409,89538.0,89537.0,0.00562525]
[1765804749403,0.61954402,89538.0,89537.0,0.00562525]
[1765804751323,0.61954402,89538.0,89537.0,0.00362525]
[1765804752191,0.61854402,89538.0,89537.0,0.00062525]
[1765804752548,0.61954402,89538.0,89537.0,0.00262525]
[1765804753333,0.73005164,89538.0,89537.0,0.00262525]
[1765804753541,0.56377409,89538.0,89537.0,0.00262525]
[1765804753751,0.67501412,89538.0,89537.0,0.00262525]
[1765804755190,0.67601412,89538.0,89537.0,0.00262525]
[1765804755620,0.67501412,89538.0,89537.0,0.00062525]
[1765804756037,0.67501412,89538.0,89537.0,0.00162525]
[1765804756265,0.28392258,89538.0,89537.0,0.05013525]
[1765804756476,0.25,89580.0,89537.0,0.05013525]
[1765804756477,0.01198,89581.0,89569.0,0.01116457]
[1765804756687,0.01116432,89571.0,89564.0,0.11122229]
[1765804756914,0.01116432,89571.0,89556.0,0.01768]
[1765804756915,0.0111642,89572.0,89565.0,0.01116507]
[1765804757130,0.0111642,89572.0,89563.0,0.01116532]
[1765804757342,0.01116395,89574.0,89569.0,0.01116457]
[1765804757579,0.01116407,89573.0,89569.0,0.01116457]
[1765804757789,0.03594407,89573.0,89569.0,0.00038353]
[1765804758003,0.0153,89570.0,89569.0,0.00038353]
[1765804758218,0.03615121,89570.0,89569.0,0.00038353]
[1765804758434,0.06093121,89570.0,89569.0,0.00038353]
[1765804759523,0.06193121,89570.0,89569.0,0.00038353]
[1765804759738,0.11770114,89570.0,89569.0,0.00038353]
[1765804759945,0.06443258,89570.0,89569.0,0.00238353]
[1765804760367,0.17567261,89570.0,89569.0,0.00238353]
[1765804768199,0.4455214,89570.0,89569.0,0.00238353]
[1765804768441,0.4455214,89570.0,89540.0,0.01116819]
[1765804768442,0.22333936,89550.0,89546.0,0.23451589]
[1765804768651,0.22333663,89551.0,89548.0,0.23451059]
[1765804769050,0.23450345,89551.0,89548.0,0.01116719]
[1765804769459,0.23450586,89550.0,89547.0,0.09486872]
[1765804769879,0.22334199,89549.0,89547.0,0.09486872]
[1765804770166,0.22334141,89549.0,89547.0,0.09486872]
[1765804770386,0.2233439,89548.0,89547.0,0.09486872]
[1765804770596,0.22334639,89547.0,89546.0,0.0031151]
[1765804770829,0.26261639,89547.0,89546.0,0.0031151]
[1765804771039,0.03927,89547.0,89546.0,0.0031151]
[1765804771250,0.23550848,89549.0,89547.0,0.006]
[1765804771640,0.23450848,89549.0,89546.0,0.01128254]
[1765804772011,0.001,89547.0,89546.0,0.01628254]
[1765804772235,0.001,89547.0,89546.0,0.0051151]
[1765804772436,0.22434639,89547.0,89546.0,0.0051151]
[1765804772839,0.001,89547.0,89546.0,0.22846399]
[1765804773053,0.001,89547.0,89546.0,0.23046399]
[1765804773405,0.001,89547.0,89546.0,0.0071151]
[1765804773606,0.22334521,89548.0,89546.0,0.0001151]
[1765804773809,0.22334639,89547.0,89546.0,0.0001151]
[1765804774459,0.26310639,89547.0,89546.0,0.0001151]
[1765804774840,0.26410639,89547.0,89546.0,0.0041151]
[1765804775340,0.26410639,89547.0,89546.0,0.0061151]
[1765804778573,0.37534642,89547.0,89546.0,0.0061151]
[1765804780058,0.39298642,89547.0,89546.0,0.0061151]
[1765804781297,0.39198642,89547.0,89546.0,0.0021151]
[1765804781707,0.39198642,89547.0,89546.0,0.0011151]
[1765804782160,0.39298642,89547.0,89546.0,0.0011151]
[1765804782368,0.68368642,89547.0,89546.0,0.0011151]
[1765804787192,0.51406884,89538.0,89537.0,0.00024172]
[1765804787408,0.65316887,89538.0,89537.0,0.00035636]
[1765804787817,0.67736887,89538.0,89537.0,0.00035636]
[1765804788844,0.67736887,89538.0,89537.0,0.00435636]
[1765804789046,0.67836887,89538.0,89537.0,0.00435636]
[1765804789485,0.67836887,89538.0,89537.0,0.00335636]
[1765804789688,0.67836887,89538.0,89537.0,0.00035636]
[1765804790923,0.68284183,89538.0,89537.0,0.00035636]
[1765804791578,0.70148183,89538.0,89537.0,0.00135636]
[1765804793435,0.68384183,89538.0,89537.0,0.00135636]
[1765804793648,0.70148183,89538.0,89537.0,0.00135636]
[1765804794679,0.5902418,89538.0,89537.0,0.00135636]
[1765804794885,0.70148183,89538.0,89537.0,0.00135636]
[1765804799583,0.62532384,89532.0,89531.0,0.0004]
[1765804799773,0.65329869,89532.0,89531.0,0.0004]
[1765804799975,0.67749869,89532.0,89531.0,0.0004]
[1765804800735,0.69513869,89532.0,89531.0,0.0004]
[1765804800935,0.74719188,89532.0,89531.0,0.0004]
[1765804801131,0.69513869,89532.0,89531.0,0.0004]
[1765804801916,0.69613869,89532.0,89531.0,0.0024]
[1765804802735,0.67749869,89532.0,89531.0,0.0004]
[1765804802904,0.69513869,89532.0,89531.0,0.0004]
[1765804803121,0.69613869,89532.0,89531.0,0.0014]
[1765804803322,0.69864006,89532.0,89531.0,0.0014]
[1765804803529,0.69764006,89532.0,89531.0,0.0004]
[1765804804829,0.51670003,89532.0,89531.0,0.0004]
[1765804805404,0.51570003,89532.0,89531.0,0.0004]
[1765804805614,0.51670003,89532.0,89531.0,0.0014]
[1765804805822,0.51770003,89532.0,89531.0,0.0014]
[1765804806024,0.00261622,89532.0,89531.0,0.0004]
[1765804806241,0.22449866,89532.0,89531.0,0.0004]
[1765804806449,0.22549866,89532.0,89531.0,0.0014]
[1765804807303,0.00211485,89532.0,89531.0,0.0014]
[1765804807507,0.22549866,89532.0,89531.0,0.0014]
[1765804808442,0.00211485,89532.0,89531.0,0.0014]
[1765804808657,0.22549866,89532.0,89531.0,0.0014]
[1765804813775,0.00211485,89532.0,89531.0,0.0014]
[1765804813981,0.22549866,89532.0,89531.0,0.0014]
[1765804815369,0.00211485,89532.0,89531.0,0.0014]
[1765804815616,0.22549866,89532.0,89531.0,0.0014]
[1765804816178,0.00211485,89532.0,89531.0,0.0014]
[1765804816884,0.22549866,89532.0,89531.0,0.0014]
[1765804818496,0.00211485,89532.0,89531.0,0.0014]
[1765804818742,0.22549866,89532.0,89531.0,0.0014]
[1765804824392,0.00211485,89532.0,89531.0,0.0014]
[1765804824814,0.00211485,89532.0,89531.0,0.26079631]
[1765804825031,0.00211485,89532.0,89531.0,0.03741]
[1765804825237,0.00211485,89532.0,89531.0,0.02179]
[1765804825914,0.00211485,89532.0,89531.0,0.24517631]
[1765804826354,0.00211485,89532.0,89531.0,0.02179]
[1765804826538,0.00211485,89532.0,89531.0,0.24517631]
[1765804827089,0.00211485,89532.0,89531.0,0.02179]
[1765804827520,0.22549866,89532.0,89531.0,0.02179]
[1765804827718,0.22549866,89532.0,89531.0,0.00661]
[1765804830127,0.22549866,89532.0,89531.0,0.0014]
[1765804831430,0.00211485,89532.0,89531.0,0.0014]
[1765804832006,0.00211485,89532.0,89531.0,0.22999631]
[1765804833784,0.00211485,89532.0,89531.0,0.26122631]
[1765804835154,0.00111485,89532.0,89531.0,0.26022631]
[1765804835538,0.00011485,89532.0,89531.0,0.24460631]
[1765804835773,0.00111485,89532.0,89531.0,0.24560631]
[1765804836142,0.00111485,89532.0,89531.0,0.0014]
[1765804836352,0.22449866,89532.0,89531.0,0.0014]
[1765804839209,0.00111485,89532.0,89531.0,0.22478631]
[1765804839414,0.00111485,89532.0,89531.0,0.22999631]
[1765804840397,0.00111485,89532.0,89531.0,0.26122631]
[1765804841400,0.00111485,89532.0,89531.0,0.24560631]
[1765804841868,0.22449866,89532.0,89531.0,0.00661]
[1765804842067,0.00111485,89532.0,89531.0,0.00661]
[1765804842868,0.22449866,89532.0,89531.0,0.00661]
[1765804844491,0.22449866,89532.0,89531.0,0.0014]
[1765804844918,0.00111485,89532.0,89531.0,0.0014]
[1765804845138,0.22449866,89532.0,89531.0,0.0014]
[1765804855722,0.37562869,89532.0,89531.0,0.0014]
[1765804856165,0.26589003,89532.0,89531.0,0.0014]
[1765804857324,0.22600003,89532.0,89531.0,0.0014]
[1765804857994,0.24983003,89532.0,89531.0,0.0014]
[1765804859850,0.26589003,89532.0,89531.0,0.0014]
[1765804861368,0.37713006,89532.0,89531.0,0.0014]
[1765804862204,0.26589003,89532.0,89531.0,0.0014]
[1765804863060,0.37713006,89532.0,89531.0,0.0014]
[1765804868167,0.37595728,89532.0,89531.0,0.0014]
[1765804869172,0.22482725,89532.0,89531.0,0.0014]
[1765804869556,0.24907725,89532.0,89531.0,0.0014]
[1765804870105,0.26409725,89532.0,89531.0,0.0014]
[1765804870523,0.26856995,89532.0,89531.0,0.0014]
[1765804877224,0.0044727,89532.0,89531.0,0.24561631]
[1765804877444,0.0044727,89532.0,89531.0,0.26123631]
[1765804877842,0.01116881,89535.0,89532.0,0.23455059]
[1765804877969,0.04470985,89535.0,89532.0,0.23455059]
[1765804878193,0.04470985,89535.0,89533.0,0.22338125]
[1765804878398,0.03354104,89535.0,89533.0,0.22338125]
[1765804878669,0.25691873,89535.0,89532.0,0.23455059]
[1765804879186,0.03354104,89535.0,89534.0,0.23899882]
[1765804879614,0.22337434,89536.0,89534.0,0.25016776]
[1765804879731,0.22337434,89536.0,89534.0,0.01562]
[1765804879935,0.22337633,89535.0,89534.0,0.01562]
[1765804880382,0.23454303,89536.0,89532.0,0.23455288]
[1765804880605,0.01116869,89536.0,89534.0,0.22337799]
[1765804880764,0.04470973,89536.0,89534.0,0.22337799]
[1765804881177,0.22337882,89534.0,89533.0,0.001]
[1765804881431,0.22437689,89535.0,89533.0,0.001]
[1765804881564,0.22337689,89535.0,89532.0,0.2345525]
[1765804881969,0.22337689,89535.0,89534.0,0.001]
[1765804882409,0.22337689,89535.0,89533.0,0.22338117]
[1765804882586,0.22337689,89535.0,89532.0,0.2345525]
[1765804882792,0.22437689,89535.0,89533.0,0.001]
[1765804883007,0.22437689,89535.0,89533.0,0.22438132]
[1765804883834,0.22437689,89535.0,89533.0,0.001]
[1765804884425,0.04470973,89536.0,89534.0,0.03124]
[1765804884629,0.04470973,89536.0,89535.0,0.23899633]
[1765804884630,0.03354104,89536.0,89535.0,0.23899633]
[1765804886369,0.25791487,89536.0,89535.0,0.001]
[1765804886792,0.22338381,89532.0,89531.0,0.00561]
[1765804887011,0.25025381,89532.0,89531.0,0.0004]
[1765804887226,0.27450381,89532.0,89531.0,0.0004]
[1765804887636,0.27897615,89532.0,89531.0,0.0004]
[1765804888303,0.27897615,89532.0,89531.0,0.0024]
[1765804889090,0.27997615,89532.0,89531.0,0.0054]
[1765804890140,0.39271755,89532.0,89531.0,0.0054]
[1765804890789,0.28147752,89532.0,89531.0,0.0054]
[1765804890924,0.39271755,89532.0,89531.0,0.0054]
[1765804891293,0.28147752,89532.0,89531.0,0.0054]
[1765804893775,0.33724745,89532.0,89531.0,0.0054]
[1765804893906,0.28147752,89532.0,89531.0,0.0054]
[1765804896059,0.57217752,89532.0,89531.0,0.0054]
[1765804896646,0.62794745,89532.0,89531.0,0.0054]
[1765804897428,0.62794745,89532.0,89529.0,0.00024176]
[1765804897429,0.62532883,89530.0,89529.0,0.00024176]
[1765804897645,0.65861883,89530.0,89529.0,0.00024176]
[1765804897856,0.68184883,89530.0,89529.0,0.00024176]
[1765804899293,0.68284883,89530.0,89529.0,0.00024176]
[1765804900072,0.68384883,89530.0,89529.0,0.00124176]
[1765804901062,0.68284883,89530.0,89529.0,0.00124176]
[1765804901359,0.68484883,89530.0,89529.0,0.00124176]
[1765804905470,0.6893223,89530.0,89529.0,0.00124176]
[1765804908019,0.76738177,89530.0,89529.0,0.00124176]
[1765804908445,0.76738177,89530.0,89529.0,1.76e-06]
[1765804908738,0.6893223,89530.0,89529.0,1.76e-06]
[1765804909749,0.72367194,89530.0,89529.0,1.76e-06]
[1765804911560,0.7132778,89530.0,89529.0,1.76e-06]
[1765804914453,0.72367102,89530.0,89529.0,1.76e-06]
[1765804914653,0.6893223,89530.0,89529.0,1.76e-06]
[1765804915195,0.28738227,89530.0,89529.0,1.76e-06]
[1765804915388,0.57808227,89530.0,89529.0,1.76e-06]
[1765804917287,0.6893223,89530.0,89529.0,1.76e-06]
[1765804917708,0.57808227,89530.0,89529.0,1.76e-06]
[1765804921585,0.6893223,89530.0,89529.0,1.76e-06]
[1765804922458,0.72369762,89530.0,89529.0,1.76e-06]
[1765804922820,0.83420524,89530.0,89529.0,1.76e-06]
[1765804923591,0.72369762,89530.0,89529.0,1.76e-06]
[1765804925425,0.71329297,89530.0,89529.0,1.76e-06]
[1765804926083,0.72370288,89530.0,89529.0,1.76e-06]
[1765804933672,0.63667881,89526.0,89525.0,1.76e-06]
[1765804933886,0.68730939,89526.0,89525.0,1.76e-06]
[1765804934066,0.71212939,89526.0,89525.0,1.76e-06]
[1765804934480,0.71660298,89526.0,89525.0,1.76e-06]
[1765804935313,0.71860298,89526.0,89525.0,1.76e-06]
[1765804935526,0.71963664,89526.0,89525.0,1.76e-06]
[1765804937969,0.5979867,89526.0,89525.0,1.76e-06]
[1765804938216,0.56680237,89526.0,89525.0,1.76e-06]
[1765804938851,0.59162237,89526.0,89525.0,1.76e-06]
[1765804939733,0.25846237,89526.0,89525.0,1.76e-06]
[1765804939986,0.23087237,89526.0,89525.0,0.01562176]
[1765804940214,0.23087237,89526.0,89525.0,1.76e-06]
[1765804940441,0.23087237,89526.0,89525.0,0.03124176]
[1765804940691,0.00747359,89526.0,89525.0,0.03124176]
[1765804941164,0.23087237,89526.0,89525.0,0.03124176]
[1765804941617,0.00747359,89526.0,89525.0,0.03124176]
[1765804942190,0.00747359,89526.0,89525.0,0.25464304]
[1765804942588,0.00447359,89526.0,89525.0,0.25464304]
[1765804942990,0.00547359,89526.0,89525.0,0.25464304]
[1765804943186,0.22887237,89526.0,89525.0,0.03124176]
[1765804943390,0.22887237,89526.0,89525.0,1.76e-06]
[1765804944168,0.26994237,89526.0,89525.0,1.76e-06]
[1765804944296,0.3247123,89526.0,89525.0,1.76e-06]
[1765804944763,0.3257123,89526.0,89525.0,1.76e-06]
[1765804945167,0.26994237,89526.0,89525.0,1.76e-06]
[1765804945719,0.3257123,89526.0,89525.0,1.76e-06]
[1765804945927,0.26994237,89526.0,89525.0,1.76e-06]
[1765804946179,0.3257123,89526.0,89525.0,1.76e-06]
[1765804946965,0.26994237,89526.0,89525.0,1.76e-06]
[1765804948645,0.3257123,89526.0,89525.0,1.76e-06]
[1765804949800,0.26994237,89526.0,89525.0,1.76e-06]
[1765804950020,0.3257123,89526.0,89525.0,1.76e-06]
[1765804951358,0.26994237,89526.0,89525.0,1.76e-06]
[1765804952483,0.56064237,89526.0,89525.0,1.76e-06]
[1765804953663,0.51957237,89526.0,89525.0,1.76e-06]
[1765804954999,0.51857237,89526.0,89525.0,1.76e-06]
[1765804955412,0.51957237,89526.0,89525.0,0.00100176]
[1765804955614,0.55907237,89526.0,89525.0,1.76e-06]
[1765804955818,0.55807237,89526.0,89525.0,1.76e-06]
[1765804956155,0.55907237,89526.0,89525.0,0.00100176]
[1765804957582,0.6148423,89526.0,89525.0,0.00100176]
[1765804958207,0.55907237,89526.0,89525.0,0.00100176]
[1765804961218,0.51957237,89526.0,89525.0,0.00100176]
[1765804961416,0.55907237,89526.0,89525.0,0.00100176]
[1765804963166,0.6703124,89526.0,89525.0,0.00100176]
[1765804964518,0.55907237,89526.0,89525.0,0.00100176]
[1765804966109,0.6703124,89526.0,89525.0,0.00100176]
[1765804966782,0.6148423,89526.0,89525.0,0.00100176]
[1765804975911,0.6703124,89526.0,89525.0,0.00100176]
[1765804977616,0.6703124,89526.0,89525.0,1.76e-06]
[1765804979043,0.6148423,89526.0,89525.0,1.76e-06]
[1765804986911,1.79123857,89526.0,89525.0,1.76e-06]
[1765804987029,1.81524267,89526.0,89525.0,1.76e-06]
[1765804987455,0.6253488,89522.0,89521.0,0.00024179]
[1765804987739,0.72949145,89522.0,89521.0,0.00024179]
[1765804988338,0.73396532,89522.0,89521.0,0.00024179]
[1765804988996,0.73596532,89522.0,89521.0,0.00024179]
[1765804989194,0.71196122,89522.0,89521.0,0.00024179]
[1765804989366,0.70154267,89522.0,89521.0,0.00024179]
[1765804990226,0.70454267,89522.0,89521.0,0.00024179]
[1765804990966,0.70454267,89522.0,89521.0,1.79e-06]
[1765804992947,0.54293374,89516.0,89515.0,1.87e-06]
[1765804993158,0.62538374,89508.0,89507.0,0.0002]
[1765804993367,0.56992363,89504.0,89485.0,0.01764]
[1765804993586,0.51416119,89501.0,89480.0,0.00521]
[1765804993815,0.51416119,89501.0,89489.0,0.02679455]
[1765804994029,0.22346119,89501.0,89490.0,0.01117443]
[1765804994243,0.22346119,89501.0,89489.0,0.25028349]
[1765804994420,0.26327119,89501.0,89489.0,0.01562]
[1765804994657,0.26327119,89501.0,89488.0,0.01117468]
[1765804994896,0.26327119,89501.0,89491.0,0.0111743]
[1765804995122,0.26327119,89501.0,89488.0,0.01117468]
[1765804995331,0.37451122,89501.0,89489.0,0.01117455]
[1765804995521,0.37451122,89501.0,89487.0,0.23466918]
[1765804995777,0.37451122,89501.0,89500.0,10.002056]
[1765804996220,0.37551122,89501.0,89500.0,10.002056]
[1765804996670,0.66621122,89501.0,89500.0,10.002056]
[1765804997323,0.55497119,89501.0,89500.0,10.002056]
[1765804997603,0.55497119,89501.0,89500.0,5.52570195]
[1765804997604,1.75365129,89501.0,89500.0,5.52570195]
[1765804997812,1.66635703,89501.0,89500.0,3.99940201]
[1765804998030,1.77959706,89501.0,89500.0,3.96585122]
[1765804998244,1.74176696,89501.0,89500.0,3.57982784]
[1765804998462,0.74176696,89501.0,89500.0,2.90293783]
[1765804998675,1.74176696,89501.0,89500.0,1.84922138]
[1765804998890,1.74176696,89501.0,89500.0,1.722038]
[1765804999094,1.77763531,89501.0,89500.0,1.41747663]
[1765804999319,1.74776696,89501.0,89500.0,1.22192334]
[1765804999533,1.73976696,89501.0,89500.0,1.18837255]
[1765804999756,1.74176696,89501.0,89500.0,0.46367514]
[1765804999972,1.74176696,89501.0,89500.0,0.21843354]
[1765805000186,1.74176696,89501.0,89500.0,0.14574016]
[1765805000406,0.01117805,89461.0,89452.0,0.01155]
[1765805000618,0.30187793,89462.0,89456.0,0.00641024]
[1765805000830,0.2907,89462.0,89456.0,0.00641024]
[1765805001251,0.01117905,89461.0,89456.0,0.00641024]
[1765805002272,0.0223571,89461.0,89456.0,0.00641024]
[1765805002490,0.01117905,89461.0,89456.0,0.00641024]
[1765805002694,0.02085121,89460.0,89457.0,0.02956984]
[1765805002911,0.01117905,89461.0,89457.0,0.02956984]
[1765805003559,0.02085121,89460.0,89456.0,0.00741024]
[1765805003986,0.03202939,89460.0,89456.0,0.00741024]
[1765805004209,0.0111783,89459.0,89456.0,0.00741024]
[1765805004417,0.31155121,89460.0,89456.0,0.001]
[1765805004621,0.30187818,89460.0,89456.0,0.001]
[1765805004828,0.2917,89460.0,89456.0,0.001]
[1765805005087,0.2917,89460.0,89455.0,0.00783459]
[1765805005299,0.2907,89458.0,89455.0,0.024467]
[1765805005506,0.02085121,89457.0,89455.0,0.00783459]
[1765805005718,0.30287818,89460.0,89455.0,0.00783459]
[1765805006066,0.02085121,89459.0,89455.0,0.00783459]
[1765805006485,0.02085121,89459.0,89455.0,0.00883459]
[1765805006682,0.02185121,89459.0,89456.0,0.05234485]
[1765805006897,0.01117905,89461.0,89458.0,0.0012705]
[1765805007097,0.01117905,89461.0,89455.0,0.01901339]
[1765805007098,0.01117905,89461.0,89455.0,0.00783459]
[1765805007304,0.001,89459.0,89455.0,0.00783459]
[1765805007505,0.001,89459.0,89455.0,0.00794944]
[1765805007710,0.01117905,89461.0,89455.0,0.00794944]
[1765805007918,0.24592005,89461.0,89456.0,0.06302171]
[1765805008132,0.001,89459.0,89456.0,0.06302171]
[1765805008534,0.001,89459.0,89455.0,0.00794944]
[1765805008757,0.001,89459.0,89455.0,0.00894944]
[1765805009165,0.001,89459.0,89455.0,0.00794944]
[1765805009372,0.001,89459.0,89455.0,0.01912824]
[1765805009574,0.01117905,89461.0,89456.0,0.001]
[1765805009776,0.01117905,89461.0,89457.0,0.01728658]
[1765805009985,0.001,89459.0,89457.0,0.01728658]
[1765805010848,0.01117905,89458.0,89457.0,0.01728658]
[1765805011022,0.01117905,89458.0,89457.0,0.13451241]
[1765805011225,0.01117905,89458.0,89457.0,0.08775369]
[1765805011426,0.01117905,89458.0,89457.0,0.15773369]
[1765805012412,0.01117905,89458.0,89457.0,0.15873369]
[1765805012660,0.01117905,89458.0,89457.0,0.16003446]
[1765805013074,0.01117905,89458.0,89457.0,0.15903446]
[1765805013283,0.01117905,89458.0,89457.0,0.13667735]
[1765805013496,0.01117905,89458.0,89457.0,0.13767735]
[1765805013704,0.01217905,89458.0,89457.0,0.13767735]
[1765805014110,0.01217905,89458.0,89457.0,0.23254607]
[1765805014542,0.01217905,89458.0,89457.0,0.45611717]
[1765805014757,0.001,89458.0,89457.0,0.56733946]
[1765805016511,0.01117643,89474.0,89467.0,0.12239959]
[1765805016726,0.23470085,89476.0,89473.0,0.00081661]
[1765805016948,0.01117705,89469.0,89463.0,0.03734]
[1765805017156,0.01117743,89466.0,89463.0,0.03734]
[1765805017569,0.0111773,89467.0,89464.0,0.06998]
[1765805017789,0.23472452,89467.0,89464.0,0.06998]
[1765805018222,0.001,89469.0,89467.0,0.0111773]
[1765805018439,0.001,89469.0,89468.0,0.08401]
[1765805018650,0.001,89469.0,89468.0,0.15399]
[1765805019066,0.001,89469.0,89468.0,0.17634436]
[1765805019279,0.001,89469.0,89468.0,0.28685198]
[1765805019495,0.001,89469.0,89468.0,0.26449762]
[1765805019722,0.03356472,89477.0,89476.0,0.22352362]
[1765805019936,0.03356472,89477.0,89476.0,0.27019362]
[1765805020146,0.01117505,89485.0,89477.0,0.01117605]
[1765805020147,0.01117518,89484.0,89477.0,0.01117605]
[1765805020411,0.04473915,89484.0,89478.0,0.13082076]
[1765805020624,0.01117543,89482.0,89478.0,0.13082076]
[1765805020834,0.01117555,89481.0,89478.0,0.06998]
[1765805021040,0.01117568,89480.0,89479.0,0.06998]
[1765805021244,0.0111758,89479.0,89473.0,0.06998]
[1765805021444,0.01117618,89476.0,89473.0,0.06998]
[1765805021877,0.01117605,89477.0,89474.0,0.09486872]
[1765805022094,0.23469474,89478.0,89475.0,0.126957]
[1765805022304,0.001,89477.0,89475.0,0.056977]
[1765805022705,0.01117593,89478.0,89476.0,0.00072586]
[1765805022950,0.01117593,89478.0,89475.0,0.126957]
[1765805023150,0.001,89477.0,89475.0,0.126957]
[1765805023356,0.001,89477.0,89475.0,0.056977]
[1765805023536,0.001,89477.0,89474.0,0.09486872]
[1765805024107,0.001,89477.0,89476.0,0.04667]
[1765805024528,0.001,89477.0,89476.0,0.11665]
[1765805024737,0.22652112,89477.0,89476.0,0.11665]
[1765805024885,0.003,89477.0,89476.0,0.04667]
[1765805025275,0.002,89477.0,89476.0,0.04667]
[1765805025475,0.22552112,89477.0,89476.0,0.04667]
[1765805025680,0.23470097,89476.0,89473.0,0.01768]
[1765805025897,0.01117618,89476.0,89474.0,0.09486872]
[1765805026234,0.22351437,89480.0,89473.0,0.27067956]
[1765805026434,0.22349958,89486.0,89474.0,0.10604515]
[1765805026579,0.002,89477.0,89474.0,0.10604515]
[1765805026783,0.03356322,89480.0,89477.0,0.01117605]
[1765805027038,0.03356322,89480.0,89478.0,0.07364221]
[1765805027436,0.03356322,89480.0,89478.0,0.14362221]
[1765805028048,0.0111758,89479.0,89475.0,0.03734]
[1765805028254,0.0111758,89479.0,89478.0,0.00066535]
[1765805028454,0.23469193,89479.0,89478.0,0.00066535]
[1765805029934,0.0447389,89480.0,89479.0,0.0006351]
[1765805030133,0.26825253,89480.0,89479.0,0.0006351]
[1765805030562,0.23468931,89480.0,89479.0,0.0006351]
[1765805030982,0.34743071,89480.0,89479.0,0.0006351]
[1765805031185,0.63813071,89480.0,89479.0,0.0006351]
[1765805031393,0.66619549,89480.0,89479.0,0.0006351]
[1765805031602,0.54457068,89480.0,89479.0,0.0006351]
[1765805032039,0.60034061,89480.0,89479.0,0.0006351]
[1765805032245,0.65581071,89480.0,89479.0,0.0006351]
[1765805032665,0.65781071,89480.0,89479.0,0.0006351]
[1765805033460,0.65581071,89480.0,89479.0,0.0006351]
[1765805033661,0.65681071,89480.0,89479.0,0.0006351]
[1765805033876,0.66081071,89480.0,89479.0,0.0006351]
[1765805036403,0.54957068,89480.0,89479.0,0.0006351]